[Event "Titled Tuesday Blitz January 17 Early 2023"]
[White "Kopczynski, Michal"]
[Black "Pultinevicius, Paulius"]
[WhiteFideId "1124200"]
[BlackFideId "12809390"]
[WhiteElo "2225"]
[BlackElo "2537"]
[Result "1/2-1/2"]
[Round "06"]
[TimeControl "180+2"]
[Date "2023.01.17"]
[WhiteClock "0:00:10"]
[BlackClock "0:00:05"]

1. e4 {[%clk 0:03:00]}  c6 {[%clk 0:02:59]} 2. d4 {[%clk 0:03:01]}  d5 {[%clk 0:02:58]} 3. e5 {[%clk 0:03:01]}  Bf5 {[%clk 0:02:57]} 4. g4 {[%clk 0:03:01]}  Bd7 {[%clk 0:02:54]} 5. Bd3 {[%clk 0:03:01]}  Qc8 {[%clk 0:02:49]} 6. h3 {[%clk 0:03:00]}  c5 {[%clk 0:02:48]} 7. dxc5 {[%clk 0:02:58]}  Nc6 {[%clk 0:02:47]} 8. f4 {[%clk 0:02:57]}  Nb4 {[%clk 0:02:39]} 9. Be3 {[%clk 0:02:47]}  h5 {[%clk 0:02:31]} 10. g5 {[%clk 0:02:24]}  e6 {[%clk 0:02:22]} 11. Nc3 {[%clk 0:02:16]}  Bxc5 {[%clk 0:02:20]} 12. Bxc5 {[%clk 0:02:06]}  Qxc5 {[%clk 0:02:21]} 13. Qd2 {[%clk 0:01:39]}  Ne7 {[%clk 0:02:16]} 14. O-O-O {[%clk 0:01:35]}  O-O-O {[%clk 0:01:43]} 15. Nf3 {[%clk 0:01:29]}  Kb8 {[%clk 0:01:41]} 16. Kb1 {[%clk 0:01:27]}  Rc8 {[%clk 0:01:34]} 17. Ne2 {[%clk 0:01:18]}  Nxd3 {[%clk 0:01:23]} 18. Qxd3 {[%clk 0:01:19]}  Bb5 {[%clk 0:01:22]} 19. Qd2 {[%clk 0:01:19]}  Bxe2 {[%clk 0:01:00]} 20. Qxe2 {[%clk 0:01:20]}  Nf5 {[%clk 0:01:01]} 21. Rhe1 {[%clk 0:01:10]}  Qb4 {[%clk 0:00:47]} 22. Qd2 {[%clk 0:01:00]}  Qxd2 {[%clk 0:00:46]} 23. Rxd2 {[%clk 0:01:01]}  Rc4 {[%clk 0:00:46]} 24. g6 {[%clk 0:00:58]}  fxg6 {[%clk 0:00:42]} 25. Ng5 {[%clk 0:00:58]}  Re8 {[%clk 0:00:42]} 26. Rf2 {[%clk 0:00:55]}  Kc8 {[%clk 0:00:38]} 27. b3 {[%clk 0:00:52]}  Rc6 {[%clk 0:00:35]} 28. Rg1 {[%clk 0:00:48]}  Kd7 {[%clk 0:00:29]} 29. Nf3 {[%clk 0:00:35]}  Rec8 {[%clk 0:00:24]} 30. Rxg6 {[%clk 0:00:33]}  b5 {[%clk 0:00:23]} 31. Rg5 {[%clk 0:00:22]}  h4 {[%clk 0:00:21]} 32. Rg4 {[%clk 0:00:20]}  Rh8 {[%clk 0:00:15]} 33. Rfg2 {[%clk 0:00:21]}  Rc7 {[%clk 0:00:12]} 34. Rg6 {[%clk 0:00:20]}  b4 {[%clk 0:00:11]} 35. Ng5 {[%clk 0:00:18]}  Rc6 {[%clk 0:00:11]} 36. Nf3 {[%clk 0:00:15]}  Rc3 {[%clk 0:00:10]} 37. Ng5 {[%clk 0:00:14]}  Rg3 {[%clk 0:00:08]} 38. Nxe6 {[%clk 0:00:09]}  Rxh3 {[%clk 0:00:03]} 39. Nxg7 {[%clk 0:00:07]}  Rh1+ {[%clk 0:00:03]} 40. Rg1 {[%clk 0:00:06]}  Ne7 {[%clk 0:00:04]} 41. e6+ {[%clk 0:00:04]}  Kd6 {[%clk 0:00:02]} 42. Nf5+ {[%clk 0:00:05]}  Nxf5 {[%clk 0:00:02]} 43. Rxh1 {[%clk 0:00:05]}  Ne7 {[%clk 0:00:03]} 44. Rg4 {[%clk 0:00:05]}  Nf5 {[%clk 0:00:04]} 45. e7 {[%clk 0:00:05]}  Kxe7 {[%clk 0:00:04]} 46. Kc1 {[%clk 0:00:06]}  Ke6 {[%clk 0:00:04]} 47. Kd2 {[%clk 0:00:06]}  Kf6 {[%clk 0:00:05]} 48. Kd3 {[%clk 0:00:06]}  a5 {[%clk 0:00:05]} 49. Rg5 {[%clk 0:00:06]}  Rc8 {[%clk 0:00:05]} 50. Rg4 {[%clk 0:00:06]}  Rc3+ {[%clk 0:00:06]} 51. Kd2 {[%clk 0:00:06]}  h3 {[%clk 0:00:07]} 52. Rg8 {[%clk 0:00:05]}  Nd4 {[%clk 0:00:07]} 53. Rf8+ {[%clk 0:00:05]}  Kg7 {[%clk 0:00:08]} 54. Rd8 {[%clk 0:00:05]}  h2 {[%clk 0:00:04]} 55. Rd7+ {[%clk 0:00:05]}  Kf6 {[%clk 0:00:04]} 56. Rxd5 {[%clk 0:00:04]}  Nf3+ {[%clk 0:00:04]} 57. Kd1 {[%clk 0:00:03]}  Kg6 {[%clk 0:00:04]} 58. Rd3 {[%clk 0:00:03]}  Kf5 {[%clk 0:00:01]} 59. Rxc3 {[%clk 0:00:03]}  bxc3 {[%clk 0:00:02]} 60. Ke2 {[%clk 0:00:03]}  Kxf4 {[%clk 0:00:02]} 61. Rf1 {[%clk 0:00:04]}  Kg4 {[%clk 0:00:02]} 62. Rh1 {[%clk 0:00:04]}  Kg3 {[%clk 0:00:03]} 63. Kd3 {[%clk 0:00:04]}  Kg2 {[%clk 0:00:02]} 64. Rxh2+ {[%clk 0:00:04]}  Kxh2 {[%clk 0:00:02]} 65. Kxc3 {[%clk 0:00:05]}  Kg3 {[%clk 0:00:03]} 66. a4 {[%clk 0:00:05]}  Kf4 {[%clk 0:00:03]} 67. b4 {[%clk 0:00:06]}  axb4+ {[%clk 0:00:03]} 68. Kxb4 {[%clk 0:00:06]}  Ke5 {[%clk 0:00:03]} 69. c4 {[%clk 0:00:07]}  Kd6 {[%clk 0:00:04]} 70. a5 {[%clk 0:00:08]}  Kc7 {[%clk 0:00:04]} 71. Kb5 {[%clk 0:00:08]}  Nd4+ {[%clk 0:00:04]} 72. Kc5 {[%clk 0:00:08]}  Nb3+ {[%clk 0:00:04]} 73. Kb4 {[%clk 0:00:09]}  Nd2 {[%clk 0:00:04]} 74. a6 {[%clk 0:00:09]}  Kb6 {[%clk 0:00:04]} 75. a7 {[%clk 0:00:08]}  Kxa7 {[%clk 0:00:04]} 76. c5 {[%clk 0:00:09]}  Kb7 {[%clk 0:00:04]} 77. c6+ {[%clk 0:00:10]}  Kxc6 {[%clk 0:00:05]} 1/2-1/2


[Site "https://www.chess.com"]

[Event "Titled Tuesday Blitz January 17 Early 2023"]
[White "Galchenko, Matvey"]
[Black "Duda, Jan-Krzysztof"]
[WhiteFideId "24175480"]
[BlackFideId "1170546"]
[WhiteElo "2438"]
[BlackElo "2724"]
[Result "0-1"]
[Round "06"]
[TimeControl "180+2"]
[Date "2023.01.17"]
[WhiteClock "0:00:08"]
[BlackClock "0:01:16"]

1. d4 {[%clk 0:03:00]}  b6 {[%clk 0:03:00]} 2. e4 {[%clk 0:03:00]}  Bb7 {[%clk 0:03:01]} 3. Bd3 {[%clk 0:03:00]}  e6 {[%clk 0:03:00]} 4. Nf3 {[%clk 0:02:58]}  d6 {[%clk 0:03:00]} 5. Nc3 {[%clk 0:02:49]}  Nd7 {[%clk 0:03:00]} 6. a4 {[%clk 0:02:47]}  a6 {[%clk 0:02:59]} 7. a5 {[%clk 0:02:46]}  b5 {[%clk 0:02:59]} 8. O-O {[%clk 0:02:46]}  c5 {[%clk 0:02:59]} 9. Re1 {[%clk 0:02:42]}  c4 {[%clk 0:02:54]} 10. Bf1 {[%clk 0:02:40]}  Ngf6 {[%clk 0:02:53]} 11. e5 {[%clk 0:02:26]}  dxe5 {[%clk 0:02:53]} 12. dxe5 {[%clk 0:02:26]}  Nd5 {[%clk 0:02:53]} 13. Ne4 {[%clk 0:02:22]}  h6 {[%clk 0:02:54]} 14. b3 {[%clk 0:01:55]}  c3 {[%clk 0:02:52]} 15. Qd4 {[%clk 0:01:44]}  Qc7 {[%clk 0:02:44]} 16. Nd6+ {[%clk 0:01:40]}  Bxd6 {[%clk 0:02:45]} 17. exd6 {[%clk 0:01:41]}  Qxd6 {[%clk 0:02:45]} 18. Qxg7 {[%clk 0:01:41]}  O-O-O {[%clk 0:02:42]} 19. Qxf7 {[%clk 0:01:38]}  Nc5 {[%clk 0:02:39]} 20. Qh5 {[%clk 0:01:28]}  Rhg8 {[%clk 0:02:31]} 21. Be3 {[%clk 0:01:13]}  Rdf8 {[%clk 0:02:04]} 22. Bxc5 {[%clk 0:01:03]}  Qxc5 {[%clk 0:02:05]} 23. Rxe6 {[%clk 0:01:03]}  Kb8 {[%clk 0:02:01]} 24. Re5 {[%clk 0:00:59]}  Qc6 {[%clk 0:01:56]} 25. Rf5 {[%clk 0:00:37]}  Nf4 {[%clk 0:01:45]} 26. Rxf8+ {[%clk 0:00:36]}  Rxf8 {[%clk 0:01:45]} 27. Qe5+ {[%clk 0:00:36]}  Ka8 {[%clk 0:01:45]} 28. Qg7 {[%clk 0:00:20]}  Qc8 {[%clk 0:01:29]} 29. Qg3 {[%clk 0:00:19]}  Nh3+ {[%clk 0:01:18]} 30. Qxh3 {[%clk 0:00:13]}  Qxh3 {[%clk 0:01:18]} 31. gxh3 {[%clk 0:00:14]}  Rg8+ {[%clk 0:01:18]} 32. Bg2 {[%clk 0:00:08]}  Bxf3 {[%clk 0:01:18]} 33. Re1 {[%clk 0:00:07]}  Rxg2+ {[%clk 0:01:15]} 34. Kf1 {[%clk 0:00:08]}  Rxh2 {[%clk 0:01:16]} 0-1


[Site "https://www.chess.com"]

[Event "Titled Tuesday Blitz January 17 Early 2023"]
[White "Esipenko, Andrey"]
[Black "Gurvich, Vitaly"]
[WhiteFideId "24175439"]
[BlackFideId "24164852"]
[WhiteElo "2679"]
[BlackElo "2278"]
[Result "1-0"]
[Round "06"]
[TimeControl "180+2"]
[Date "2023.01.17"]
[WhiteClock "0:00:21"]
[BlackClock "0:00:02"]

1. e4 {[%clk 0:03:00]}  c6 {[%clk 0:02:58]} 2. d4 {[%clk 0:03:00]}  d5 {[%clk 0:02:59]} 3. e5 {[%clk 0:03:00]}  Bf5 {[%clk 0:02:58]} 4. h4 {[%clk 0:03:00]}  h5 {[%clk 0:02:57]} 5. Bd3 {[%clk 0:03:00]}  Bxd3 {[%clk 0:02:56]} 6. Qxd3 {[%clk 0:03:01]}  Qa5+ {[%clk 0:02:56]} 7. Nd2 {[%clk 0:02:59]}  Qa6 {[%clk 0:02:53]} 8. c4 {[%clk 0:02:59]}  e6 {[%clk 0:02:53]} 9. Ngf3 {[%clk 0:02:59]}  Nh6 {[%clk 0:02:52]} 10. O-O {[%clk 0:02:59]}  Nf5 {[%clk 0:02:52]} 11. b3 {[%clk 0:03:00]}  Be7 {[%clk 0:02:50]} 12. a4 {[%clk 0:03:01]}  Nd7 {[%clk 0:02:40]} 13. Ba3 {[%clk 0:02:59]}  Bxa3 {[%clk 0:02:35]} 14. Rxa3 {[%clk 0:03:00]}  c5 {[%clk 0:02:11]} 15. dxc5 {[%clk 0:02:34]}  Nxc5 {[%clk 0:02:05]} 16. Qb1 {[%clk 0:02:35]}  dxc4 {[%clk 0:01:13]} 17. Nxc4 {[%clk 0:02:36]}  O-O {[%clk 0:01:10]} 18. Rc1 {[%clk 0:02:35]}  b5 {[%clk 0:01:05]} 19. axb5 {[%clk 0:02:00]}  Qxb5 {[%clk 0:01:06]} 20. b4 {[%clk 0:02:00]}  Nd7 {[%clk 0:00:56]} 21. Ra5 {[%clk 0:01:55]}  Qb7 {[%clk 0:00:56]} 22. Nd6 {[%clk 0:01:55]}  Nxd6 {[%clk 0:00:53]} 23. exd6 {[%clk 0:01:56]}  Nf6 {[%clk 0:00:54]} 24. Ne5 {[%clk 0:01:53]}  Nd5 {[%clk 0:00:46]} 25. Qe4 {[%clk 0:01:36]}  Rfd8 {[%clk 0:00:35]} 26. Rc7 {[%clk 0:01:32]}  Qxb4 {[%clk 0:00:26]} 27. Qxb4 {[%clk 0:01:28]}  Nxb4 {[%clk 0:00:27]} 28. Nxf7 {[%clk 0:01:29]}  Rf8 {[%clk 0:00:19]} 29. Ng5 {[%clk 0:01:04]}  Nd5 {[%clk 0:00:17]} 30. Rcxa7 {[%clk 0:01:03]}  Rxa7 {[%clk 0:00:09]} 31. Rxa7 {[%clk 0:01:04]}  Rd8 {[%clk 0:00:08]} 32. Rxg7+ {[%clk 0:01:03]}  Kxg7 {[%clk 0:00:07]} 33. Nxe6+ {[%clk 0:01:03]}  Kf6 {[%clk 0:00:07]} 34. Nxd8 {[%clk 0:01:04]}  Ke5 {[%clk 0:00:06]} 35. Nb7 {[%clk 0:00:28]}  Ke6 {[%clk 0:00:06]} 36. g3 {[%clk 0:00:27]}  Nc3 {[%clk 0:00:03]} 37. Kg2 {[%clk 0:00:26]}  Ne4 {[%clk 0:00:03]} 38. Kf3 {[%clk 0:00:26]}  Nd2+ {[%clk 0:00:03]} 39. Ke3 {[%clk 0:00:26]}  Nc4+ {[%clk 0:00:03]} 40. Kf4 {[%clk 0:00:26]}  Ne5 {[%clk 0:00:01]} 41. Kg5 {[%clk 0:00:24]}  Nd3 {[%clk 0:00:02]} 42. f4 {[%clk 0:00:23]}  Nf2 {[%clk 0:00:01]} 43. Kxh5 {[%clk 0:00:22]}  Kd7 {[%clk 0:00:02]} 44. g4 {[%clk 0:00:21]} 1-0


[Site "https://www.chess.com"]

[Event "Titled Tuesday Blitz January 17 Early 2023"]
[White "Xu, Yi"]
[Black "Costachi, Mihnea"]
[WhiteFideId "8605564"]
[BlackFideId "1217518"]
[WhiteElo "2527"]
[BlackElo "2476"]
[Result "1/2-1/2"]
[Round "06"]
[TimeControl "180+2"]
[Date "2023.01.17"]
[WhiteClock "0:00:11"]
[BlackClock "0:00:28"]

1. e4 {[%clk 0:03:00]}  c5 {[%clk 0:02:59]} 2. Nf3 {[%clk 0:03:00]}  Nc6 {[%clk 0:02:59]} 3. Bb5 {[%clk 0:03:00]}  g6 {[%clk 0:02:59]} 4. O-O {[%clk 0:02:59]}  Bg7 {[%clk 0:02:59]} 5. c3 {[%clk 0:02:56]}  Nf6 {[%clk 0:02:52]} 6. Re1 {[%clk 0:02:55]}  O-O {[%clk 0:02:52]} 7. d4 {[%clk 0:02:53]}  cxd4 {[%clk 0:02:51]} 8. cxd4 {[%clk 0:02:53]}  d5 {[%clk 0:02:52]} 9. e5 {[%clk 0:02:53]}  Ne4 {[%clk 0:02:52]} 10. Bxc6 {[%clk 0:02:41]}  bxc6 {[%clk 0:02:51]} 11. Be3 {[%clk 0:02:38]}  f6 {[%clk 0:02:43]} 12. exf6 {[%clk 0:02:33]}  exf6 {[%clk 0:02:42]} 13. Nbd2 {[%clk 0:02:28]}  Rb8 {[%clk 0:02:24]} 14. Qc1 {[%clk 0:02:06]}  Qb6 {[%clk 0:02:17]} 15. Nb3 {[%clk 0:01:20]}  Ba6 {[%clk 0:02:08]} 16. Qc2 {[%clk 0:01:13]}  Bc4 {[%clk 0:02:07]} 17. Nfd2 {[%clk 0:00:40]}  Nxd2 {[%clk 0:02:07]} 18. Nxd2 {[%clk 0:00:21]}  Qxb2 {[%clk 0:02:07]} 19. Qxb2 {[%clk 0:00:21]}  Rxb2 {[%clk 0:02:08]} 20. Nxc4 {[%clk 0:00:22]}  dxc4 {[%clk 0:02:09]} 21. Rec1 {[%clk 0:00:22]}  f5 {[%clk 0:02:10]} 22. g3 {[%clk 0:00:21]}  Rb4 {[%clk 0:02:02]} 23. Rc2 {[%clk 0:00:20]}  c5 {[%clk 0:01:56]} 24. Rd1 {[%clk 0:00:17]}  cxd4 {[%clk 0:01:55]} 25. Bxd4 {[%clk 0:00:17]}  Rd8 {[%clk 0:01:56]} 26. Rcd2 {[%clk 0:00:14]}  Bxd4 {[%clk 0:01:26]} 27. Rxd4 {[%clk 0:00:14]}  Rxd4 {[%clk 0:01:27]} 28. Rxd4 {[%clk 0:00:15]}  Ra4 {[%clk 0:01:28]} 29. Kg2 {[%clk 0:00:11]}  Kg7 {[%clk 0:01:26]} 30. Kf3 {[%clk 0:00:11]}  Kf6 {[%clk 0:01:24]} 31. Rd7 {[%clk 0:00:09]}  h6 {[%clk 0:01:15]} 32. Rc7 {[%clk 0:00:08]}  Ra3+ {[%clk 0:01:14]} 33. Kg2 {[%clk 0:00:06]}  Rxa2 {[%clk 0:01:13]} 34. Rxc4 {[%clk 0:00:06]}  a5 {[%clk 0:00:57]} 35. Rc6+ {[%clk 0:00:07]}  Kf7 {[%clk 0:00:58]} 36. h4 {[%clk 0:00:07]}  h5 {[%clk 0:00:54]} 37. Ra6 {[%clk 0:00:07]}  a4 {[%clk 0:00:54]} 38. Kf3 {[%clk 0:00:06]}  a3 {[%clk 0:00:55]} 39. Ke3 {[%clk 0:00:04]}  Ra1 {[%clk 0:00:54]} 40. Kf4 {[%clk 0:00:04]}  a2 {[%clk 0:00:36]} 41. Kg5 {[%clk 0:00:05]}  Ke7 {[%clk 0:00:32]} 42. Kxg6 {[%clk 0:00:04]}  f4 {[%clk 0:00:33]} 43. Kxh5 {[%clk 0:00:05]}  fxg3 {[%clk 0:00:24]} 44. fxg3 {[%clk 0:00:05]}  Rg1 {[%clk 0:00:25]} 45. Rxa2 {[%clk 0:00:05]}  Rxg3 {[%clk 0:00:25]} 46. Rf2 {[%clk 0:00:06]}  Ke8 {[%clk 0:00:25]} 47. Rf5 {[%clk 0:00:06]}  Ke7 {[%clk 0:00:25]} 48. Rg5 {[%clk 0:00:06]}  Ra3 {[%clk 0:00:23]} 49. Kg6 {[%clk 0:00:07]}  Kf8 {[%clk 0:00:23]} 50. Re5 {[%clk 0:00:04]}  Ra6+ {[%clk 0:00:23]} 51. Kg5 {[%clk 0:00:04]}  Kg7 {[%clk 0:00:22]} 52. h5 {[%clk 0:00:04]}  Ra7 {[%clk 0:00:22]} 53. Rf5 {[%clk 0:00:04]}  Kh7 {[%clk 0:00:22]} 54. h6 {[%clk 0:00:04]}  Rb7 {[%clk 0:00:23]} 55. Kh5 {[%clk 0:00:05]}  Rc7 {[%clk 0:00:23]} 56. Rg5 {[%clk 0:00:05]}  Rc6 {[%clk 0:00:23]} 57. Rg7+ {[%clk 0:00:06]}  Kh8 {[%clk 0:00:24]} 58. Rf7 {[%clk 0:00:06]}  Rb6 {[%clk 0:00:24]} 59. Kg5 {[%clk 0:00:06]}  Ra6 {[%clk 0:00:24]} 60. Re7 {[%clk 0:00:06]}  Rb6 {[%clk 0:00:24]} 61. Rf7 {[%clk 0:00:07]}  Ra6 {[%clk 0:00:25]} 62. Rf6 {[%clk 0:00:07]}  Rxf6 {[%clk 0:00:25]} 63. Kxf6 {[%clk 0:00:08]}  Kh7 {[%clk 0:00:25]} 64. Kg5 {[%clk 0:00:09]}  Kh8 {[%clk 0:00:26]} 65. Kg6 {[%clk 0:00:09]}  Kg8 {[%clk 0:00:27]} 66. h7+ {[%clk 0:00:10]}  Kh8 {[%clk 0:00:28]} 67. Kh6 {[%clk 0:00:11]} 1/2-1/2


[Site "https://www.chess.com"]

[Event "Titled Tuesday Blitz January 17 Early 2023"]
[White "Krysa, Leandro"]
[Black "Demchenko, Anton"]
[WhiteFideId "116807"]
[BlackFideId "4160258"]
[WhiteElo "2541"]
[BlackElo "2623"]
[Result "1-0"]
[Round "06"]
[TimeControl "180+2"]
[Date "2023.01.17"]
[WhiteClock "0:00:03"]
[BlackClock "0:00:01"]

1. e4 {[%clk 0:03:00]}  e5 {[%clk 0:02:59]} 2. Nf3 {[%clk 0:03:01]}  Nc6 {[%clk 0:02:59]} 3. d4 {[%clk 0:03:01]}  exd4 {[%clk 0:02:59]} 4. Nxd4 {[%clk 0:03:02]}  Nf6 {[%clk 0:02:58]} 5. Nxc6 {[%clk 0:03:02]}  bxc6 {[%clk 0:02:59]} 6. e5 {[%clk 0:03:02]}  Qe7 {[%clk 0:02:59]} 7. Qe2 {[%clk 0:03:03]}  Nd5 {[%clk 0:03:00]} 8. Nd2 {[%clk 0:03:03]}  a5 {[%clk 0:02:59]} 9. c4 {[%clk 0:02:58]}  Nb6 {[%clk 0:02:57]} 10. b3 {[%clk 0:02:50]}  a4 {[%clk 0:02:56]} 11. Rb1 {[%clk 0:02:35]}  axb3 {[%clk 0:02:56]} 12. axb3 {[%clk 0:02:36]}  Qe6 {[%clk 0:02:50]} 13. g3 {[%clk 0:02:24]}  Bb4 {[%clk 0:02:49]} 14. Bg2 {[%clk 0:02:24]}  O-O {[%clk 0:02:50]} 15. O-O {[%clk 0:02:24]}  d5 {[%clk 0:02:38]} 16. Bb2 {[%clk 0:02:12]}  Ra2 {[%clk 0:02:30]} 17. Nf3 {[%clk 0:01:58]}  Bc3 {[%clk 0:01:32]} 18. Rfc1 {[%clk 0:01:38]}  Bxb2 {[%clk 0:01:24]} 19. Rxb2 {[%clk 0:01:39]}  Rxb2 {[%clk 0:01:24]} 20. Qxb2 {[%clk 0:01:39]}  dxc4 {[%clk 0:01:20]} 21. bxc4 {[%clk 0:01:36]}  c5 {[%clk 0:01:12]} 22. Qb5 {[%clk 0:01:22]}  Qe7 {[%clk 0:01:10]} 23. h4 {[%clk 0:01:11]}  h6 {[%clk 0:01:09]} 24. Re1 {[%clk 0:01:00]}  Bd7 {[%clk 0:01:07]} 25. Qb3 {[%clk 0:00:52]}  Rd8 {[%clk 0:01:05]} 26. Nd2 {[%clk 0:00:44]}  Be6 {[%clk 0:01:04]} 27. Ne4 {[%clk 0:00:45]}  Bxc4 {[%clk 0:00:57]} 28. Qc3 {[%clk 0:00:41]}  Rd3 {[%clk 0:00:50]} 29. Qa5 {[%clk 0:00:36]}  Rd5 {[%clk 0:00:29]} 30. f4 {[%clk 0:00:24]}  Rd3 {[%clk 0:00:15]} 31. Kh2 {[%clk 0:00:20]}  Bd5 {[%clk 0:00:13]} 32. Nxc5 {[%clk 0:00:16]}  Rd4 {[%clk 0:00:09]} 33. Ne4 {[%clk 0:00:12]}  Bxe4 {[%clk 0:00:07]} 34. Bxe4 {[%clk 0:00:12]}  Qd8 {[%clk 0:00:06]} 35. Re2 {[%clk 0:00:10]}  Rd1 {[%clk 0:00:07]} 36. Qc5 {[%clk 0:00:07]}  Na4 {[%clk 0:00:05]} 37. Qb4 {[%clk 0:00:06]}  Ra1 {[%clk 0:00:03]} 38. e6 {[%clk 0:00:05]}  fxe6 {[%clk 0:00:02]} 39. Bg2 {[%clk 0:00:05]}  Qd1 {[%clk 0:00:02]} 40. Qe4 {[%clk 0:00:05]}  Qg1+ {[%clk 0:00:02]} 41. Kh3 {[%clk 0:00:05]}  Nc5 {[%clk 0:00:03]} 42. Qc6 {[%clk 0:00:05]}  Rc1 {[%clk 0:00:02]} 43. Qe8+ {[%clk 0:00:05]}  Kh7 {[%clk 0:00:02]} 44. Rxe6 {[%clk 0:00:05]}  Qf2 {[%clk 0:00:01]} 45. Re2 {[%clk 0:00:04]}  Qd4 {[%clk 0:00:01]} 46. f5 {[%clk 0:00:04]}  Qf6 {[%clk 0:00:01]} 47. h5 {[%clk 0:00:04]}  Rc3 {[%clk 0:00:01]} 48. Qg6+ {[%clk 0:00:03]} 1-0


[Site "https://www.chess.com"]

[Event "Titled Tuesday Blitz January 17 Early 2023"]
[White "Grandelius, Nils"]
[Black "Domingo Nunez, Ruben"]
[WhiteFideId "1710400"]
[BlackFideId "22245570"]
[WhiteElo "2664"]
[BlackElo "2416"]
[Result "1-0"]
[Round "06"]
[TimeControl "180+2"]
[Date "2023.01.17"]
[WhiteClock "0:00:14"]
[BlackClock "0:00:02"]

1. e4 {[%clk 0:03:00]}  Nf6 {[%clk 0:02:55]} 2. e5 {[%clk 0:02:59]}  Nd5 {[%clk 0:02:55]} 3. d4 {[%clk 0:02:54]}  d6 {[%clk 0:02:55]} 4. Nf3 {[%clk 0:02:53]}  Nc6 {[%clk 0:02:52]} 5. c4 {[%clk 0:02:50]}  Nb6 {[%clk 0:02:52]} 6. e6 {[%clk 0:02:51]}  fxe6 {[%clk 0:02:42]} 7. Nc3 {[%clk 0:02:51]}  e5 {[%clk 0:02:27]} 8. d5 {[%clk 0:02:50]}  Nd4 {[%clk 0:02:27]} 9. Nxd4 {[%clk 0:02:47]}  exd4 {[%clk 0:02:28]} 10. Qxd4 {[%clk 0:02:48]}  e5 {[%clk 0:02:29]} 11. Qe4 {[%clk 0:02:30]}  Be7 {[%clk 0:02:23]} 12. Bd3 {[%clk 0:02:31]}  g6 {[%clk 0:02:24]} 13. Qe2 {[%clk 0:02:24]}  O-O {[%clk 0:02:22]} 14. Ne4 {[%clk 0:02:03]}  c6 {[%clk 0:02:13]} 15. Bh6 {[%clk 0:01:53]}  Rf7 {[%clk 0:02:13]} 16. O-O-O {[%clk 0:01:48]}  cxd5 {[%clk 0:01:53]} 17. cxd5 {[%clk 0:01:49]}  Bd7 {[%clk 0:01:53]} 18. Kb1 {[%clk 0:01:48]}  Rc8 {[%clk 0:01:07]} 19. h4 {[%clk 0:01:47]}  Ba4 {[%clk 0:00:47]} 20. Rd2 {[%clk 0:01:41]}  Bxh4 {[%clk 0:00:41]} 21. g3 {[%clk 0:01:00]}  Be7 {[%clk 0:00:40]} 22. f4 {[%clk 0:01:01]}  exf4 {[%clk 0:00:30]} 23. gxf4 {[%clk 0:01:01]}  Qc7 {[%clk 0:00:22]} 24. b3 {[%clk 0:00:39]}  Bd7 {[%clk 0:00:22]} 25. Ng5 {[%clk 0:00:36]}  Bxg5 {[%clk 0:00:22]} 26. Bxg5 {[%clk 0:00:37]}  Re8 {[%clk 0:00:18]} 27. Qg2 {[%clk 0:00:33]}  Bf5 {[%clk 0:00:18]} 28. Bxf5 {[%clk 0:00:29]}  Rxf5 {[%clk 0:00:19]} 29. Rc1 {[%clk 0:00:27]}  Qf7 {[%clk 0:00:19]} 30. Rcd1 {[%clk 0:00:25]}  Qg7 {[%clk 0:00:15]} 31. Re2 {[%clk 0:00:21]}  Rff8 {[%clk 0:00:13]} 32. Re6 {[%clk 0:00:20]}  Qc3 {[%clk 0:00:04]} 33. Qe4 {[%clk 0:00:20]}  Nd7 {[%clk 0:00:02]} 34. Rxe8 {[%clk 0:00:17]}  Rxe8 {[%clk 0:00:02]} 35. Qxe8+ {[%clk 0:00:18]}  Nf8 {[%clk 0:00:02]} 36. Bh6 {[%clk 0:00:14]} 1-0


[Site "https://www.chess.com"]

[Event "Titled Tuesday Blitz January 17 Early 2023"]
[White "Wagner, Dennis"]
[Black "Movahed, Sina"]
[WhiteFideId "24650684"]
[BlackFideId "42520835"]
[WhiteElo "2595"]
[BlackElo "2340"]
[Result "1/2-1/2"]
[Round "06"]
[TimeControl "180+2"]
[Date "2023.01.17"]
[WhiteClock "0:00:11"]
[BlackClock "0:00:54"]

1. d4 {[%clk 0:03:00]}  Nf6 {[%clk 0:02:59]} 2. Nf3 {[%clk 0:03:01]}  g6 {[%clk 0:03:00]} 3. c4 {[%clk 0:03:02]}  Bg7 {[%clk 0:03:00]} 4. Nc3 {[%clk 0:03:02]}  O-O {[%clk 0:03:01]} 5. e4 {[%clk 0:03:03]}  d6 {[%clk 0:03:02]} 6. Be2 {[%clk 0:03:03]}  e5 {[%clk 0:03:02]} 7. Be3 {[%clk 0:03:03]}  exd4 {[%clk 0:03:03]} 8. Nxd4 {[%clk 0:03:04]}  Re8 {[%clk 0:03:03]} 9. f3 {[%clk 0:03:05]}  c6 {[%clk 0:03:02]} 10. Bf2 {[%clk 0:03:05]}  d5 {[%clk 0:02:57]} 11. exd5 {[%clk 0:03:05]}  cxd5 {[%clk 0:02:58]} 12. O-O {[%clk 0:03:06]}  Nc6 {[%clk 0:02:55]} 13. c5 {[%clk 0:03:06]}  Bf8 {[%clk 0:02:53]} 14. Nxc6 {[%clk 0:02:55]}  bxc6 {[%clk 0:02:54]} 15. b4 {[%clk 0:02:54]}  Nh5 {[%clk 0:02:47]} 16. g3 {[%clk 0:02:46]}  Bg7 {[%clk 0:02:37]} 17. Bd4 {[%clk 0:02:44]}  Bh3 {[%clk 0:02:19]} 18. Re1 {[%clk 0:02:44]}  Qc7 {[%clk 0:02:18]} 19. Bxg7 {[%clk 0:02:21]}  Kxg7 {[%clk 0:02:19]} 20. Qd4+ {[%clk 0:02:21]}  Kg8 {[%clk 0:02:19]} 21. Kf2 {[%clk 0:02:13]}  Ng7 {[%clk 0:02:10]} 22. Ba6 {[%clk 0:02:00]}  Nf5 {[%clk 0:01:59]} 23. Qf6 {[%clk 0:01:59]}  h5 {[%clk 0:01:56]} 24. Rxe8+ {[%clk 0:00:46]}  Rxe8 {[%clk 0:01:55]} 25. Re1 {[%clk 0:00:47]}  Rxe1 {[%clk 0:01:53]} 26. Kxe1 {[%clk 0:00:47]}  h4 {[%clk 0:01:53]} 27. Ne2 {[%clk 0:00:20]}  hxg3 {[%clk 0:01:50]} 28. hxg3 {[%clk 0:00:20]}  Nxg3 {[%clk 0:01:49]} 29. Nf4 {[%clk 0:00:16]}  Bd7 {[%clk 0:01:36]} 30. Bd3 {[%clk 0:00:15]}  Nf5 {[%clk 0:01:35]} 31. Bxf5 {[%clk 0:00:14]}  Bxf5 {[%clk 0:01:36]} 32. Ne2 {[%clk 0:00:07]}  Qb7 {[%clk 0:01:33]} 33. a3 {[%clk 0:00:06]}  Qa6 {[%clk 0:01:21]} 34. Nd4 {[%clk 0:00:07]}  Qxa3 {[%clk 0:01:21]} 35. Qd8+ {[%clk 0:00:07]}  Kh7 {[%clk 0:01:11]} 36. Qh4+ {[%clk 0:00:07]}  Kg8 {[%clk 0:01:00]} 37. Qd8+ {[%clk 0:00:08]}  Kg7 {[%clk 0:00:57]} 38. Nxf5+ {[%clk 0:00:08]}  gxf5 {[%clk 0:00:58]} 39. Qg5+ {[%clk 0:00:08]}  Kh7 {[%clk 0:00:58]} 40. Qh5+ {[%clk 0:00:08]}  Kg8 {[%clk 0:00:58]} 41. Qg5+ {[%clk 0:00:08]}  Kf8 {[%clk 0:00:58]} 42. Qd8+ {[%clk 0:00:08]}  Kg7 {[%clk 0:00:58]} 43. Qg5+ {[%clk 0:00:09]}  Kh8 {[%clk 0:00:58]} 44. Qh6+ {[%clk 0:00:09]}  Kg8 {[%clk 0:00:56]} 45. Qg5+ {[%clk 0:00:10]}  Kh7 {[%clk 0:00:54]} 46. Qh5+ {[%clk 0:00:10]}  Kg7 {[%clk 0:00:54]} 47. Qg5+ {[%clk 0:00:11]} 1/2-1/2


[Site "https://www.chess.com"]